Cogmind - Beta 14 @@@ ROGUE MODE // 2024.09.08 @ 03:32:10 Player: Skergy Result: Destroyed by Tesla Bomb Trap Performance ------------- Evolutions (4) 2000 Regions Visited (7) 1400 Robots Destroyed (32) 160 Value Destroyed (1049) 1049 Prototype IDs (25) 500 Alien Tech Used (0) 0 Bonus (406) 406 TOTAL SCORE: 5515 Bonus ------- High Alert Combat Kills 36 Follower Combat Kills 70 Aligned with FarCom 300 Cogmind --------- Core Integrity 0/850 Matter 300/300 Energy 99/100 System Corruption 1% Temperature Cool (0) Movement Core (50) Location -6/Factory Parts ------- > --- POWER (1) -------- (None) > --- PROPULSION (4) --- (None) > --- UTILITY (7) ------ (None) > --- WEAPON (3) ------- (None) > --- INVENTORY (5) ---- Light Nuclear Core Heavy Armor Plating Hardened Medium Armor Plating Hacking Suite Peak State ------------ > --- POWER ------------ Reinforced Deuterium Engine > --- PROPULSION ------- Armored Treads Armored Treads Armored Treads Titanium Leg > --- UTILITY ---------- Medium Storage Unit Experimental Sensor Array Improved Signal Interpreter System Shield > --- WEAPON ----------- AWS/Gauss > --- INVENTORY -------- Light Nuclear Core VSS Leg Medium Matter Pod Active Sensor Suite Transport Network Coupler Transmission Jammer Reaction Control System Hardened Medium Armor Plating [Rating: 52] Favorites ----------- Power Light Deuterium Engine Engine Light Deuterium Engine Propulsion Armored Treads Treads Armored Treads Leg Aluminum Leg Wheel Wheel Utility Medium Storage Unit Device Experimental Sensor Array Storage Medium Storage Unit Processor Signal Interpreter Hackware System Shield Weapon Light Cannon Energy Gun Pulse Rifle Ballistic Gun AWS/Gauss Ballistic Cannon Light Cannon Launcher Rocket Launcher Build | -11 -10 -10 -10 -9 -8 -7 -6 ------- Run | Yrd Mat Min Exi Min Mat Fac Fac Slots Evolved 8 | . . . . . 4 2 2 Power . | . . . . . . . . Propulsion 2 | . . . . . 2 . . Utility 5 | . . . . . 2 1 2 Weapon 1 | . . . . . . 1 . Parts Attached 40 | 6 5 13 1 . 10 5 . Power 5 | 1 1 2 . . 1 . . Engine 5 | 1 1 2 . . 1 . . Core . | . . . . . . . . Reactor . | . . . . . . . . Propulsion 14 | 2 . 4 . . 4 4 . Treads 3 | . . . . . 3 . . Leg 8 | 2 . 1 . . 1 4 . Wheel 3 | . . 3 . . . . . Hover . | . . . . . . . . Flight . | . . . . . . . . Utility 7 | 1 3 . . . 3 . . Device 3 | 1 1 . . . 1 . . Storage 1 | . 1 . . . . . . Processor 2 | . 1 . . . 1 . . Hackware 1 | . . . . . 1 . . Protection . | . . . . . . . . Artifact . | . . . . . . . . Weapon 14 | 2 1 7 1 . 2 1 . Energy Gun 3 | . . 1 . . 2 . . Energy Cannon . | . . . . . . . . Ballistic Gun 3 | 2 . . 1 . . . . Ballistic Cannon 7 | . 1 5 . . . 1 . Launcher 1 | . . 1 . . . . . Special Weapon . | . . . . . . . . Impact Weapon . | . . . . . . . . Slashing Weapon . | . . . . . . . . Piercing Weapon . | . . . . . . . . Special Melee Weapon . | . . . . . . . . Unidentified Prototypes 2 | . . . 1 . 1 . . Corrupted Parts 1 | . . 1 . . . . . System Corruption 3 | . . 3 . . . . . Parts Lost 9 | . . 4 . . 3 1 1 Power 1 | . . . . . 1 . . Propulsion 4 | . . 3 . . 1 . . Utility 2 | . . . . . . 1 1 Weapon 2 | . . 1 . . 1 . . Highest Loss Streak 3 | . . 3 . . 2 1 1 To Critical Strikes . | . . . . . . . . Average Slot Usage (%) 82 | . 98 81 90 85 83 77 21 Engine 10 | . 14 9 14 14 8 7 1 Treads 5 | . . . . . 20 20 . Leg 10 | . 28 9 . . 5 9 8 Wheel 9 | . . 11 28 28 5 . . Device 4 | . 9 . . . 9 6 . Storage 10 | . 8 14 14 14 9 7 1 Processor 10 | . 9 14 14 14 8 7 1 Hackware 2 | . . . . . 8 7 3 Energy Gun 2 | . . 3 5 . . 7 1 Ballistic Gun 7 | . 19 2 8 14 8 . . Ballistic Cannon 7 | . 8 15 5 . . 1 1 Peak Build Rating 52 | 6 8 13 25 25 52 40 27 Average Rating 19 | 4 7 7 20 25 45 36 10 On Entrance 17 | . 6 8 13 25 25 36 27 Naked Turns 57 | . . . . . . . 57 Heaviest Build 36 | 7 19 22 25 25 36 35 34 Greatest Support 60 | 20 20 20 20 20 60 60 52 Greatest Overweight (x) 5 | . . 5 1 1 2 1 . Average Overweight (x) . | . . . . 1 . . . Largest Inventory Capacity 10 | 5 10 10 10 10 10 10 10 Average Capacity 9 | 5 7 10 10 10 10 10 6 Most Carried 10 | 5 10 10 10 10 10 10 10 Average Carried 8 | 2 7 9 10 10 9 10 6 Final Capacity 10 | 5 10 10 10 10 10 10 5 Final Carried 10 | 5 10 10 10 10 10 10 5 Class Distribution -------------------- 42% | Mutant 39% | Scavenger-Mutant 18% | Scavenger-Skirmisher Dominant Class ---------------- Mutant | -10/Materials Mutant | -10/Mines Scavenger-Mutant | -10/Exiles Scavenger-Mutant | -9/Mines Scavenger-Skirmisher | -8/Materials Scavenger-Mutant | -7/Factory Mutant | -6/Factory Resources | -11 -10 -10 -10 -9 -8 -7 -6 ----------- Run | Yrd Mat Min Exi Min Mat Fac Fac Matter Collected 985 | 272 243 301 . . 122 47 . Remotely . | . . . . . . . . Salvage Created 1233 | 46 128 103 . . 941 15 . Parts 71 | 3 11 1 . . 55 1 . Haulers Intercepted 1 | . 1 . . . . . . Recyclers Shooed . | . . . . . . . . Parts Field Recycled . | . . . . . . . . Retrieved Matter . | . . . . . . . . Parts Self-Destructed . | . . . . . . . . Prevented . | . . . . . . . . Kills | -11 -10 -10 -10 -9 -8 -7 -6 ------- Run | Yrd Mat Min Exi Min Mat Fac Fac Combat Hostiles Destroyed 23 | 1 3 3 . . 16 . . Guns 20 | 1 3 . . . 16 . . Cannons 3 | . . 3 . . . . . Classes Destroyed 13 | 1 3 4 . . 5 . . Worker 5 | . . 2 . . 2 1 . Builder 1 | . . . . . 1 . . Hauler 1 | . 1 . . . . . . Recycler 1 | . . 1 . . . . . Watcher 3 | . 1 . . . 2 . . Swarmer 3 | . 3 . . . . . . Grunt 12 | 1 . . . . 11 . . Sentry 1 | . . . . . 1 . . Demolisher 1 | . . 1 . . . . . Specialist 2 | . . . . . 2 . . Hunter 1 | . . . . . 1 . . Heavy 1 | . . . . . 1 . . Assembled 2 | . . 2 . . . . . Best Kill Streak 8 | 1 4 2 . . 8 1 . Combat Bots Only 5 | 1 3 1 . . 5 . . Max Kills in Single Turn 1 | 1 1 1 . . 1 1 . Gunslinging . | . . . . . . . . Exploded . | . . . . . . . . Melee . | . . . . . . . . Uniques/NPCs Destroyed . | . . . . . . . . Combat | -11 -10 -10 -10 -9 -8 -7 -6 -------- Run | Yrd Mat Min Exi Min Mat Fac Fac Hostile Shots Fired 213 | 4 13 29 . . 84 26 57 Missed 66 | 4 2 9 . . 29 10 12 Damage Taken 3044 | . 87 763 . . 1060 266 868 Core 1303 | . 17 162 . . 258 14 852 Absorbed by Shields . | . . . . . . . . Core Remaining (%) 69 | 100 . . . 28 53 98 . Volleys Fired 60 | 3 20 17 . . . 20 . Largest 2 | 2 2 2 . . . 2 . Hottest 113 | 40 55 70 . . . 113 . Shots Fired 178 | 6 40 33 . . 78 21 . Gun 136 | 6 32 . . . 78 20 . Cannon 40 | . 8 31 . . . 1 . Launcher 2 | . . 2 . . . . . Special . | . . . . . . . . Kinetic 156 | 6 40 31 . . 78 1 . Thermal 20 | . . . . . . 20 . Explosive 2 | . . 2 . . . . . Electromagnetic . | . . . . . . . . Robot Hit Streak 22 | 1 3 5 . . 15 22 . Robot Miss Streak 5 | 3 5 5 . . 1 3 . Penetration Max . | . . . . . . . . Secondary Targets . | . . . . . . . . Autonomous 79 | . . . . . 79 . . Shots Hit Robots 111 | 2 15 15 . . 70 9 . Core Hits 58 | 2 9 11 . . 33 3 . Critical Kills 1 | . . . . . 1 . . Critical Parts Destroyed . | . . . . . . . . Critical Strikes 2 | . . . . . 1 1 . Burn 1 | . . . . . . 1 . Destroy 1 | . . . . . 1 . . Melee Attacks . | . . . . . . . . Impact . | . . . . . . . . Slashing . | . . . . . . . . Piercing . | . . . . . . . . Sneak Attacks . | . . . . . . . . Combat Hostiles . | . . . . . . . . Follow-up Attacks . | . . . . . . . . Damage Inflicted 2701 | 26 174 277 . . 2078 133 13 Guns 2375 | 26 139 . . . 2078 132 . Cannons 286 | . 35 251 . . . . . Explosions 26 | . . 26 . . . . . Melee . | . . . . . . . . Ramming 14 | . . . . . . 1 13 Kinetic 2529 | 26 174 251 . . 2078 . . Thermal 132 | . . . . . . 132 . Explosive 26 | . . 26 . . . . . Electromagnetic . | . . . . . . . . Impact . | . . . . . . . . Slashing . | . . . . . . . . Piercing . | . . . . . . . . Highest Corruption 5 | . . 5 5 5 . . . Average Corruption 4 | . . 4 5 5 . . . Corruption Purged . | . . . . . . . . Corruption Blocked . | . . . . . . . . Effects 11 | . . 2 9 . . . . Message Errors 2 | . . . 2 . . . . Matter Fused 3 | . . . 3 . . . . Heat Flow Errors 2 | . . . 2 . . . . Energy Discharges 1 | . . 1 . . . . . Data Loss (minor) 1 | . . 1 . . . . . Data Loss (major) 1 | . . . 1 . . . . Alerts 1 | . . . 1 . . . . Overload Shots . | . . . . . . . . Overflow Damage 6 | . . 6 . . . . . Projectiles 6 | . . 6 . . . . . Explosions . | . . . . . . . . Melee . | . . . . . . . . Knockbacks 2 | . . 2 . . . . . Impact . | . . . . . . . . Kinetic 2 | . . 2 . . . . . Secondary . | . . . . . . . . Self-Inflicted Damage 6 | . . . . . . . 6 Shots . | . . . . . . . . Rammed 1 | . . . . . . . 1 Targets Rammed 2 | . . . . . . 1 1 Kicked 1 | . . . . . . 1 . Crushed . | . . . . . . . . Highest Temperature 241 | . 28 32 241 . 5 144 . Average Temperature 53 | . 12 12 110 . 5 59 . Received Heat Transfer 618 | . . 60 . . 405 153 . Effects 2 | . . . 2 . . . . Interference 2 | . . . 2 . . . . Siege Activations . | . . . . . . . . Robots Corrupted . | . . . . . . . . Combat Hostiles . | . . . . . . . . Parts Fried . | . . . . . . . . Impact Corruptions . | . . . . . . . . Robots Melted . | . . . . . . . . Combat Hostiles . | . . . . . . . . Parts Melted . | . . . . . . . . Heat Transferred 407 | . . . . . . 407 . Parts Sabotaged . | . . . . . . . . Parts Stolen . | . . . . . . . . Parts Stripped . | . . . . . . . . Power Chain Reactions . | . . . . . . . . Alert | -11 -10 -10 -10 -9 -8 -7 -6 ------- Run | Yrd Mat Min Exi Min Mat Fac Fac Peak Influence 501 | 20 127 50 . . 501 265 114 Initial 177 | . 13 . . . . 177 114 Average 106 | 4 96 15 . . 239 204 109 Maximum Alert Level 2 | . . . . . 2 1 . Low Security (%) 83 | 100 100 100 . 100 42 66 100 Level 1 10 | . . . . . 29 33 . Level 2 6 | . . . . . 27 . . Level 3 . | . . . . . . . . Level 4 . | . . . . . . . . Level 5 . | . . . . . . . . High Security . | . . . . . . . . Max Security . | . . . . . . . . Squads Dispatched 9 | . . . . . 7 2 . Investigation 3 | . . . . . 2 1 . Extermination . | . . . . . . . . Reinforcement 6 | . . . . . 5 1 . Assault . | . . . . . . . . Garrison . | . . . . . . . . Intercept . | . . . . . . . . Searches Triggered . | . . . . . . . . Construction Impeded 1 | . . . . . 1 . . Haulers Reinforced . | . . . . . . . . Active Scanning Responses . | . . . . . . . . Cargo Convoy Interrupts . | . . . . . . . . Stealth | -11 -10 -10 -10 -9 -8 -7 -6 --------- Run | Yrd Mat Min Exi Min Mat Fac Fac Distress Signals 1 | . 1 . . . . . . Communications Jammed . | . . . . . . . . Distress Signals . | . . . . . . . . Times Spotted 58 | 1 10 21 . . 20 5 1 Peak Tracking Total 10 | 1 4 10 . . 6 4 1 Tactical Retreats 1 | . . 1 . . . . . Traps | -11 -10 -10 -10 -9 -8 -7 -6 ------- Run | Yrd Mat Min Exi Min Mat Fac Fac Traps Triggered 3 | . . 1 . . 1 . 1 Indirectly . | . . . . . . . . Trap Hack Attempts . | . . . . . . . . Triggered . | . . . . . . . . Disarmed . | . . . . . . . . Reprogrammed 4 | . 4 . . . . . . Reused . | . . . . . . . . Traps Extracted . | . . . . . . . . Installed . | . . . . . . . . Triggered . | . . . . . . . . Machines | -11 -10 -10 -10 -9 -8 -7 -6 ---------- Run | Yrd Mat Min Exi Min Mat Fac Fac Machines Disabled 5 | . 1 . . . 4 . . Max in Single Turn 2 | . 1 . . . 2 . . Garrison Access 1 | . . . . . 1 . . Machines Repaired . | . . . . . . . . Machines Dismantled . | . . . . . . . . Machines Sabotaged . | . . . . . . . . Overloaded Fab Kills . | . . . . . . . . Hacking | -11 -10 -10 -10 -9 -8 -7 -6 --------- Run | Yrd Mat Min Exi Min Mat Fac Fac Machines Accessed 11 | . 2 1 2 . 6 . . Terminals 6 | . 2 . . . 4 . . Fabricators . | . . . . . . . . Repair Stations . | . . . . . . . . Recycling Units . | . . . . . . . . Scanalyzers 1 | . . . . . 1 . . Garrison Access 1 | . . . . . 1 . . Total Hacks 40 | . 5 1 6 . 28 . . Successful 24 | . 3 1 6 . 14 . . Failed 16 | . 2 . . . 14 . . Catastrophic 4 | . . . . . 4 . . Database Lockouts . | . . . . . . . . Manual 15 | . 3 . 1 . 11 . . Terminals 29 | . 5 . . . 24 . . Fabricators . | . . . . . . . . Repair Stations . | . . . . . . . . Recycling Units . | . . . . . . . . Scanalyzers 3 | . . . . . 3 . . Garrison Access 1 | . . . . . 1 . . Terminal Hacks 18 | . 2 1 6 . 9 . . Record 6 | . . . 5 . 1 . . Open Door 1 | . . 1 . . . . . Branch Access Points 1 | . . . . . 1 . . Emergency Access Points 1 | . . . . . 1 . . Alert Level 2 | . . . . . 2 . . Locate Traps 1 | . 1 . . . . . . Reprogram Traps 1 | . 1 . . . . . . Maintenance Status 1 | . . . . . 1 . . Surveillance Status 1 | . . . . . 1 . . Investigation Status 1 | . . . . . 1 . . Hauler Manifests 1 | . . . . . 1 . . Derelict Proto ID Bank 1 | . . . 1 . . . . Fabricator Hacks . | . . . . . . . . Repair Station Hacks . | . . . . . . . . Recycling Unit Hacks . | . . . . . . . . Scanalyzer 1 | . . . . . 1 . . Insert Component 1 | . . . . . 1 . . Garrison Access Hacks 1 | . . . . . 1 . . Seal Access 1 | . . . . . 1 . . Unauthorized Hacks 4 | . 1 . . . 3 . . Terminals 4 | . 1 . . . 3 . . Botnet 4 | . 1 . . . 3 . . Fabricators . | . . . . . . . . Repair Stations . | . . . . . . . . Recycling Units . | . . . . . . . . Scanalyzers . | . . . . . . . . Garrison Access . | . . . . . . . . Data Cores Recovered . | . . . . . . . . Used . | . . . . . . . . Hacking Detections 7 | . 2 . . . 5 . . Full Trace Events 3 | . . . . . 3 . . Feedback Events . | . . . . . . . . Feedback Blocked . | . . . . . . . . Robot Schematics Acquired . | . . . . . . . . Robots Built . | . . . . . . . . Authchips . | . . . . . . . . Time . | . . . . . . . . Total Robot Build Rating . | . . . . . . . . Part Schematics Acquired . | . . . . . . . . Parts Built . | . . . . . . . . Authchips . | . . . . . . . . Time . | . . . . . . . . Total Part Build Rating . | . . . . . . . . Parts Repaired . | . . . . . . . . Time . | . . . . . . . . Parts Recycled . | . . . . . . . . Recycled Matter . | . . . . . . . . Retrieved Matter . | . . . . . . . . Retrieved Components . | . . . . . . . . Parts Scanalyzed . | . . . . . . . . Part Schematics Acquired . | . . . . . . . . Parts Damaged . | . . . . . . . . Bothacking | -11 -10 -10 -10 -9 -8 -7 -6 ------------ Run | Yrd Mat Min Exi Min Mat Fac Fac Used RIF Installer . | . . . . . . . . Robots Hacked . | . . . . . . . . Non-combat . | . . . . . . . . Combat . | . . . . . . . . Robot Hacks Applied . | . . . . . . . . Relay Couplers Released . | . . . . . . . . Fabnet Peak Effective % . | . . . . . . . . Robots Rewired 1 | . . . . . . 1 . Allies Hacked . | . . . . . . . . Hacks Repelled . | . . . . . . . . Allies | -11 -10 -10 -10 -9 -8 -7 -6 -------- Run | Yrd Mat Min Exi Min Mat Fac Fac Total Allies 3 | . . 2 . . . 1 . Largest Group 2 | . . 2 2 . . 1 . Highest-Rated Group 42 | . . 42 42 . . 21 . Highest-Rated Ally 31 | . . 31 31 . . 21 . Total Orders . | . . . . . . . . Ally Attacks 6 | . . . . . . 6 . Total Damage 128 | . . . . . . 128 . Kills 2 | . . . . . . 2 . Allies Corrupted . | . . . . . . . . Allies Melted . | . . . . . . . . Intel | -11 -10 -10 -10 -9 -8 -7 -6 ------- Run | Yrd Mat Min Exi Min Mat Fac Fac Robot Analysis Total . | . . . . . . . . Derelict Logs Recovered 1 | . . 1 . . . . . Drone Launches . | . . . . . . . . Drone Recoveries . | . . . . . . . . Exploration | -11 -10 -10 -10 -9 -8 -7 -6 ------------- Run | Yrd Mat Min Exi Min Mat Fac Fac Turns Passed 2350 | 93 403 698 329 34 442 222 129 Spaces Moved 1662 | 67 266 470 344 36 287 91 101 Core 108 | 14 . 27 . . . . 67 Treads 247 | . . . . . 176 71 . Legs 586 | 53 266 213 . . . 20 34 Wheels 721 | . . 230 344 36 111 . . Hover . | . . . . . . . . Flight . | . . . . . . . . Fastest Speed 50 | 50 120 80 80 95 95 122 50 Average Speed 116 | 105 120 118 94 95 141 168 74 Slowest Speed 300 | 120 120 300 95 95 250 195 125 Overloaded Moves . | . . . . . . . . Propulsion Burnouts . | . . . . . . . . Robots Hopped . | . . . . . . . . Cave-ins Triggered 1 | . . 1 . . . . . Exploration Rate (%) 31 | 6 45 69 69 14 37 4 5 Regions Visited 7 Branch Regions 3 Pre-discovered Areas . | . . . . . . . . Known Exits Taken 6 | . 1 1 1 1 1 1 . Unknown Exits Taken 1 | 1 . . . . . . . Scrap Searched 1 | . . 1 . . . . . Spaces Dug . | . . . . . . . . Terrain Destroyed 62 | . . 26 . . 36 . . Melee . | . . . . . . . . Projectile 37 | . . 1 . . 36 . . AOE 25 | . . 25 . . . . . Terrain Rammed . | . . . . . . . . Walls Destroyed . | . . . . . . . . Machines Disabled . | . . . . . . . . Actions | -11 -10 -10 -10 -9 -8 -7 -6 --------- Run | Yrd Mat Min Exi Min Mat Fac Fac Total 1976 | 81 316 577 346 35 324 138 159 Wait 124 | . 6 61 . . 9 . 48 Move 1655 | 66 265 469 343 35 286 90 101 Hop . | . . . . . . . . Pick Up 31 | 6 11 6 . . 8 . . Fast Attach 30 | 5 4 7 1 . 9 4 . Attach 8 | 1 1 5 . . 1 . . Detach 6 | . . 4 . . 1 . 1 Swap 2 | . . 1 . . . 1 . Drop 40 | . 9 7 2 . 10 4 8 Fire 60 | 3 20 17 . . . 20 . Melee . | . . . . . . . . Ram 1 | . . . . . . . 1 Kick 1 | . . . . . . 1 . Crush . | . . . . . . . . Escape Stasis . | . . . . . . . . Rewire 18 | . . . . . . 18 . Trap . | . . . . . . . . Miscellaneous . | . . . . . . . . Route ------- -11/Scrapyard -10/Materials -10/Mines (discovered 2 exits: *Mat / *Exi) -10/Exiles -9/Mines -8/Materials (discovered 3 exits: *Fac / Sto x2) -7/Factory -6/Factory History --------- Turn | Location | Event 2 | -11/Scrapyard | Met Revision 17 61 | -11/Scrapyard | Discovered new exit (range 8) 94 | -11/Scrapyard | Entered Materials 317 | -10/Materials | Build established: Mutant 339 | -10/Materials | Discovered new exit (range 8) 346 | -10/Materials | Identified exit to Mines 497 | -10/Materials | Entered Mines 597 | -10/Mines | Received a Rocket Launcher from a helpful Derelict 615 | -10/Mines | Assembled infested the area 688 | -10/Mines | Crushed by falling debris 688 | -10/Mines | Core integrity fell below 50% 690 | -10/Mines | Lost 3 parts (2n1w) 989 | -10/Mines | Discovered new exit (range 12) 1000 | -10/Mines | Met a Derelict who couldn't figure out how to use a Trap Extractor 1028 | -10/Mines | Identified exit to Materials 1104 | -10/Mines | Found a damaged Exp. Sensor Array with a note attached 1106 | -10/Mines | Found Prototype Device 1151 | -10/Mines | Deemed a non-threat by the Exiles lab entrance 1152 | -10/Mines | Discovered new exit (range 5) 1168 | -10/Mines | Identified exit to Exiles 1195 | -10/Mines | Entered Exiles 1195 | -10/Exiles | Accompanied by 2 allies 1211 | -10/Exiles | Build established: Scavenger-Mutant 1217 | -10/Exiles | Met 8R-AWN 1225 | -10/Exiles | Led the pair of lost Derelicts to a safe place 1239 | -10/Exiles | Met EX-HEX 1272 | -10/Exiles | Met EX-BIN 1284 | -10/Exiles | Aligned with FarCom system 1285 | -10/Exiles | Given EX-Vault access code 1307 | -10/Exiles | Opened EX-Vault 1312 | -10/Exiles | Found Prototype Ballistic Gun 1312 | -10/Exiles | Identified AWS/Gauss 1335 | -10/Exiles | Warned to stay clear of 0b10 Research branches 1367 | -10/Exiles | Met EX-DEC 1516 | -10/Exiles | Discovered new exit (range 10) 1523 | -10/Exiles | Identified exit to Mines 1524 | -10/Exiles | Left Exiles lab with AWS/Gauss 1524 | -10/Exiles | Entered Mines 1531 | -9/Mines | Discovered new exit (range 11) 1540 | -9/Mines | Identified exit to Materials 1558 | -9/Mines | Entered Materials 1558 | -8/Materials | Evolved 4 slots: Propulsion x2, Utility x2 1558 | -8/Materials | Identified Exp. Sensor Array 1559 | -8/Materials | Identified exit to Storage 1689 | -8/Materials | Found Prototype Device 1857 | -8/Materials | Build established: Scavenger-Skirmisher 1895 | -8/Materials | Identified Active Sensor Suite 1968 | -8/Materials | Discovered new exit (range 15) 1975 | -8/Materials | AWS/Gauss suddenly broke down 1999 | -8/Materials | Identified exit to Factory 2000 | -8/Materials | Entered Factory 2000 | -7/Factory | Evolved 2 slots: Utility x1, Weapon x1 2081 | -7/Factory | Discovered new exit (range 12) 2221 | -7/Factory | Identified exit to Factory 2222 | -7/Factory | Entered another Factory area 2222 | -6/Factory | Evolved 2 slots: Utility x2 2308 | -6/Factory | Core integrity fell below 50% 2324 | -6/Factory | Core integrity fell below 20% 2351 | -6/Factory | Destroyed by Tesla Bomb Trap Last Messages --------------- 02275_ Penetrated by Slug. 02281_ K-01 Serf collects debris. 02284_ Penetrated by Slug. 02284_ Slug penetrates Wall. 02288_ Penetrated by Slug. 02294_ System Shield destroyed. 02297_ Penetrated by Slug. 02320_ Slug penetrates Wall. 02323_ Penetrated by Slug. 02328_ Slammed into K-01 Serf. 02328_ K-01 Serf pushes G-50 Soldier. 02334_ K-01 Serf latches onto G-50 Soldier. 02334_ K-01 Serf pushes G-50 Soldier. 02351_ Triggered Tesla Bomb Trap. 02351_ A bubble of electromagnetic force engulfs the area. 02351_ Tesla Bomb Trap short circuited. 02351_ A bubble of electromagnetic force engulfs the area. 02351_ U-05 Engineer destroyed. Map ----- +----------------------------------------------------+ | ?????????????????????????????????????????????????? | | ?????????????????????????????????????????????????? | | ?????????????????????????????????????????????????? | | ?????????????????????????????????????????????????? | | ?????????????????????????????????????????????????? | | ?????????????????????????????????????????????????? | | ?????????????????????????????????????????????????? | | ?????????????????????????????????????????????????? | | ??????? ?????????????????????????????????????? | | ??????# #????????????????????????????????????? | | ??????+ #????????????????????????????????????? | | ??????# #?????""?????????????????????????????? | | ??????# # ??? ""?????????????????????????????? | | ??????# # """ ""?????????????????????????????? | | ??????# # ??????????????????????????????? | | ??????# # """ "??????????????????????????????? | | ??????# # """ ???????????????##############??? | | ??????# # """ ???????????????# #??? | | ??????# #? ????????????????# #??? | | ??????# #? ????????????????# #??? | | ####### ###k################## #??? | | k + #??? | | % # #??? | | + #??? | | # #??? | | % h @ # #??? | | #+###########################+##+# #??? | | ????????????????????# # #??? | | " " "??????????????????# "" # #??? | | " " " "????????????????#""" ##############??? | | " " " " ??????????????#"F """ #???????????????? | | " " " " #?????????????#""" """ #???????????????? | | " " " " ??????????????#""" """ #???????????????? | | ? " " "????????????????#""" "" #???????????????? | | ? " " "????????????????# "" +???????????????? | | ? " "??????????????????? ? #???????????????? | | ? "?????????????????????#####?###???????????????? | | ? ????????????Y?????????????????????????????????? | | ?????????????????????????????????????????????????? | | ?????????????????????????????????????????????????? | | ?????????????????????????????????????????????????? | | ?????????????????????????????????????????????????? | | ?????????????????????????????????????????????????? | | ?????????????????????????????????????????????????? | | ?????????????????????????????????????????????????? | | ?????????????????????????????????????????????????? | | ????????????????????????????????????????????????? | | ????????????????????????????????????????????????? | | ?????????????????????????????????????????????????? | | ?????????????????????????????????????????????????? | +----------------------------------------------------+ Best States ------------- Heat Dissipation 45 Energy Generation 16 Energy Capacity 290 Matter Stores 300 Matter Capacity 300 Sight Range 16 Robot Scan Range 20 Terrain Scan Density 10 Evasion (%) 55 Recoil Reduction 3 Defensive Hacking 10 Item Schematics ----------------- None Robot Schematics ------------------ None Fabricated ------------ Nothing Alien Tech Used ----------------- None Achievements -------------- None Challenges ------------ None Game ------ Seed SwarmAmuletSource Manual? 0 Play Time 01:06:11 Cumulative 32.2 hours Start 2024.08.07 @ 20:46:24 End 2024.09.08 @ 03:32:10 Sessions 6 Manual Loads 0 Difficulty Rogue Special Mode None Game No. 31 Rogue 31 Adventurer 0 Explorer 0 Win Type - Total 1 Types 1/0/0/0/0/0/0/0/0 Lore% 14 Gallery% 31 Achievement% 28 Wizard Run 0 Options --------- Layout 1 ASCII 0 Keyboard 1 Movement Arrows Keybinds 0 Fullscreen 1 Font 24/Smallcaps Map View 50x35 Zoom Use 0% Tactical HUD 1 Map Filters NONE Filters NONE Steam 1 RUN: f863d981-443f-4405-9e9b-792efc6c2ef3